bitfinex/quotes_ETHUSD_20220731
["timestamp","ask_amount","ask_price","bid_price","bid_amount"]
[1659310096778,3.5579,1679.5,1679.1,1.84114128]
[1659310096948,3.5579,1679.5,1679.1,1.87089588]
[1659310097147,3.5579,1679.5,1679.1,0.38318588]
[1659310097779,3.5579,1679.5,1679.1,1.87103588]
[1659310099649,6.45594672,1679.5,1679.1,0.35343128]
[1659310099849,3.5,1679.4,1678.8,2.7933]
[1659310100079,8.74090672,1679.5,1678.6,6.8377]
[1659310100294,9.03861252,1679.5,1678.6,9.28894672]
[1659310100499,3.8,1679.4,1678.6,9.28894672]
[1659310100700,0.29772,1679.2,1678.6,9.23894672]
[1659310100903,0.29772,1679.2,1678.6,9.6341864]
[1659310101914,0.29772,1679.2,1678.6,10.0809864]
[1659310102225,0.29772,1679.2,1678.6,7.0565864]
[1659310103572,3.2236,1679.3,1678.6,7.0863543]
[1659310103875,3.2236,1679.3,1678.6,8.5746843]
[1659310104680,3.22002888,1679.3,1678.6,8.5746843]
[1659310105841,3.22002888,1679.3,1678.6,8.1278843]
[1659310106200,3.22002888,1679.3,1678.6,6.6395543]
[1659310107022,3.22002888,1679.3,1678.6,8.1278943]
[1659310107422,3.51768888,1679.3,1678.6,8.1278943]
[1659310107742,3.51768888,1679.3,1678.7,1.4883]
[1659310108037,3.51768888,1679.3,1678.7,1.5180668]
[1659310108997,3.51768888,1679.3,1678.8,0.38288892]
[1659310109501,3.51768888,1679.3,1678.8,1.87116892]
[1659310111102,3.51768888,1679.3,1678.8,0.35312322]
[1659310111616,1.4885,1679.2,1678.8,0.35312322]
[1659310111805,2.38391,1679.2,1678.8,0.35312322]
[1659310112221,1.48861,1679.1,1678.8,0.35312322]
[1659310112417,1.78632,1679.1,1678.8,0.35312322]
[1659310114056,0.29771,1679.1,1678.8,0.35312322]
[1659310115037,0.29771,1679.1,1678.5,15.98595]
[1659310115258,0.29771,1679.1,1678.5,16.89864672]
[1659310115259,3.57501,1679.1,1678.5,16.89864672]
[1659310115421,0.29773,1679.0,1678.5,16.89864672]
[1659310115867,0.29773,1679.0,1678.5,13.76414672]
[1659310116050,0.3,1679.1,1678.5,13.76414672]
[1659310116238,0.64771,1679.2,1678.5,14.21094672]
[1659310116427,4.09771,1679.2,1678.6,0.34471435]
[1659310116627,0.59771,1679.2,1678.6,0.34471435]
[1659310116842,2.08629,1679.2,1678.6,0.34471435]
[1659310117261,8.88446395,1679.2,1678.6,0.35922405]
[1659310117469,9.33106395,1679.2,1678.6,0.35922405]
[1659310117628,6.12878395,1679.2,1678.6,0.35922405]
[1659310118468,10.67075395,1679.2,1678.6,0.35922405]
[1659310119342,0.7467,1679.1,1678.6,0.35922405]
[1659310119541,1.3444,1679.1,1678.6,0.35922405]
[1659310119753,4.4438,1679.1,1678.6,0.35922405]
[1659310119961,4.4438,1679.1,1678.6,1.84767405]
[1659310120577,7.4971,1679.1,1678.6,1.84767405]
[1659310120782,0.29771,1679.0,1678.6,0.35922405]
[1659310120985,3.3994,1679.1,1678.7,0.09759437]
[1659310121159,3.3994,1679.1,1678.7,1.58593437]
[1659310121339,3.3994,1679.1,1678.7,1.88358437]
[1659310121539,3.3994,1679.1,1678.7,1.58593437]
[1659310123047,3.3994,1679.1,1678.7,1.48834]
[1659310123563,3.3994,1679.1,1678.6,0.35922405]
[1659310123884,3.6994,1679.1,1678.6,0.35922405]
[1659310124053,3.99709,1679.1,1678.6,0.35922405]
[1659310125248,3.6994,1679.1,1678.6,4.74568077]
[1659310126275,3.6994,1679.1,1678.6,0.35922405]
[1659310126484,0.29771,1679.0,1678.6,0.35922405]
[1659310126654,3.6994,1679.1,1678.6,0.35922405]
[1659310126971,3.99709,1679.1,1678.6,0.35922405]
[1659310127184,3.99709,1679.1,1678.6,1.84769405]
[1659310128978,3.99709,1679.1,1678.6,0.35922405]
[1659310129179,0.29771,1679.0,1678.6,0.35922405]
[1659310130202,3.99709,1679.1,1678.6,1.84767405]
[1659310131496,0.2977,1679.0,1678.6,1.84767405]
[1659310131875,3.6994,1679.1,1678.6,1.84767405]
[1659310132181,3.99709,1679.1,1678.6,1.84767405]
[1659310133084,3.99709,1679.1,1678.6,5.34767405]
[1659310135653,3.6994,1679.1,1678.6,1.87402853]
[1659310135870,3.6994,1679.1,1678.7,1.48839]
[1659310136939,3.6994,1679.1,1678.8,1.48829]
[1659310136940,3.0994,1679.1,1678.8,1.48829]
[1659310137340,3.0994,1679.1,1678.6,3.10400177]
[1659310137546,3.0994,1679.1,1678.7,1.48839]
[1659310137955,6.39804672,1679.0,1678.4,5.876]
[1659310138157,6.39804672,1679.0,1678.3,0.44688]
[1659310138158,6.69581382,1678.9,1678.3,0.44688]
[1659310138375,6.39804672,1678.8,1678.3,0.44688]
[1659310138525,3.5,1678.7,1678.3,0.44688]
[1659310138726,6.69804672,1678.7,1678.3,0.44688]
[1659310139176,59.69804672,1678.7,1678.3,0.44688]
[1659310139439,0.00341262,1678.6,1678.3,0.44688]
[1659310140283,2.89804672,1678.5,1678.3,0.44688]
[1659310140612,0.58441262,1678.4,1678.3,0.44688]
[1659310142003,0.00341262,1678.4,1678.3,0.44688]
[1659310142201,53.0,1678.7,1678.3,3.34492672]
[1659310142625,53.0,1678.7,1678.3,3.44252109]
[1659310142910,53.0,1678.7,1678.3,3.8198047]
[1659310146211,53.0,1678.7,1678.3,3.72221033]
[1659310149266,53.3,1678.7,1678.3,3.72221033]
[1659310149438,53.59775,1678.7,1678.3,3.72221033]
[1659310150175,53.3,1678.7,1678.3,3.72221033]
[1659310150691,53.59775,1678.7,1678.3,0.82416361]
[1659310150900,53.3,1678.7,1678.3,0.82416361]
[1659310151458,53.59774,1678.7,1678.3,0.82416361]
[1659310151695,53.59774,1678.7,1678.3,2.31282361]
[1659310152891,53.3,1678.7,1678.3,2.31282361]
[1659310156004,53.3,1678.7,1678.3,5.53834063]
[1659310156176,53.3,1678.7,1678.4,1.48851]
[1659310156507,11.4582,1679.0,1678.6,1.131]
[1659310156508,0.05,1679.0,1678.6,1.131]
[1659310156706,0.05,1679.2,1678.8,0.09759437]
[1659310156917,67.6631,1679.3,1678.8,0.09759437]
[1659310157059,67.66029729,1679.3,1678.8,0.09759437]
[1659310157262,67.66029729,1679.3,1678.8,0.4388961]
[1659310157462,67.66029729,1679.3,1679.1,0.09759437]
[1659310159305,67.66029729,1679.3,1678.9,0.34130173]
[1659310159509,67.66029729,1679.3,1678.6,0.05]
[1659310159510,3.5,1679.2,1678.6,0.05]
[1659310159841,6.3971,1679.2,1678.5,11.2771]
[1659310160041,3.50341262,1679.1,1678.5,14.17514672]
[1659310160206,0.00341262,1679.1,1678.5,14.17514672]
[1659310160407,0.00341262,1679.1,1678.5,11.2771]
[1659310160619,0.30118262,1679.1,1678.5,11.2771]
[1659310160833,4.10118262,1679.1,1678.5,11.2771]
[1659310161036,0.60118262,1679.1,1678.5,11.2771]
[1659310161326,4.10118262,1679.1,1678.5,11.2771]
[1659310161507,4.10118262,1679.1,1678.3,3.78708]
[1659310161508,6.69804672,1679.0,1678.3,0.49688]
[1659310161711,6.69804672,1679.0,1678.3,0.44688]
[1659310161712,3.41231262,1678.9,1678.3,0.44688]
[1659310161908,6.19431262,1678.9,1678.3,0.44688]
[1659310162158,6.64101262,1678.9,1678.3,0.44688]
[1659310162311,6.64101262,1678.9,1678.3,0.82011058]
[1659310162712,6.19431262,1678.9,1678.3,5.32011058]
[1659310163135,6.19431262,1678.9,1678.3,6.80874058]
[1659310163323,6.19431262,1678.9,1678.4,2.89804672]
[1659310163527,0.3,1678.9,1678.5,0.37322677]
[1659310163739,0.4967,1679.1,1678.5,0.37322677]
[1659310163740,3.8338,1679.1,1678.5,3.27127349]
[1659310163944,3.8338,1679.1,1678.5,2.18904397]
[1659310164144,3.8338,1679.1,1678.5,0.37322677]
[1659310164659,3.8338,1679.1,1678.5,0.67089677]
[1659310165248,3.8338,1679.1,1678.6,1.48842]
[1659310165460,0.00341262,1679.0,1678.5,0.37322677]
[1659310165775,0.00341262,1679.0,1678.5,1.86176677]
[1659310166774,0.00341262,1679.0,1678.5,1.89153487]
[1659310167468,53.00341262,1679.0,1678.6,1.48846]
[1659310167970,53.00341262,1679.0,1678.7,0.09759437]
[1659310168171,53.00341262,1679.0,1678.8,1.48815]
[1659310168172,53.0,1679.0,1678.8,1.48815]
[1659310168378,53.0,1679.0,1678.9,3.17859437]
[1659310168562,53.0,1679.0,1678.9,0.67859437]
[1659310168760,53.0,1679.0,1678.9,2.16668437]
[1659310169166,53.0,1679.0,1678.9,0.67859437]
[1659310169524,53.3,1679.0,1678.9,0.09759437]
[1659310171437,53.0,1679.0,1678.9,0.09759437]
[1659310174799,53.0,1679.0,1678.9,1.58578437]
[1659310177543,3.0255,1679.3,1679.2,4.195]
[1659310177770,3.7686,1679.6,1679.2,4.195]
[1659310177771,6.6824,1679.6,1679.2,5.6828]
[1659310177943,55.9138,1679.6,1679.2,5.78039437]
[1659310178345,55.9138,1679.6,1679.2,5.19939437]
[1659310179035,56.5138,1679.6,1679.2,5.19939437]
[1659310180183,56.51159359,1679.6,1679.2,2.69939437]
[1659310180538,56.51159359,1679.6,1679.2,1.4878]
[1659310180773,56.51159359,1679.6,1679.1,0.34518092]
[1659310181211,56.51500621,1679.6,1679.1,0.34518092]
[1659310181477,0.29765,1679.5,1679.1,0.34518092]
[1659310181877,56.81263621,1679.6,1679.1,0.34518092]
[1659310182106,56.81263621,1679.6,1679.1,1.83331092]
[1659310182303,56.51500621,1679.6,1679.1,1.78331092]
[1659310183109,56.51500621,1679.6,1679.1,1.73331092]
[1659310183705,56.81264621,1679.6,1679.1,1.73331092]
[1659310183879,56.51500621,1679.6,1679.1,0.24518092]
[1659310184721,3.19570672,1679.5,1679.1,0.24518092]
[1659310185026,0.1,1679.4,1678.8,0.05]
[1659310185184,3.76497,1679.4,1678.7,6.34109437]
[1659310185525,3.4673,1679.4,1678.8,4.46489]
[1659310185735,3.4673,1679.4,1678.8,7.66055672]
[1659310185908,3.4673,1679.4,1678.9,1.48815]
[1659310187717,3.4673,1679.4,1678.9,4.41595972]
[1659310187999,3.4673,1679.4,1679.0,1.48817]
[1659310189096,3.4673,1679.4,1678.9,4.38637672]
[1659310189329,3.4673,1679.4,1678.8,0.26953358]
[1659310189696,3.76497,1679.4,1678.8,0.26953358]
[1659310190147,6.66301672,1679.4,1678.8,0.26953358]
[1659310190295,0.4466,1679.3,1678.8,0.29929928]
[1659310190499,0.00341262,1679.2,1678.8,0.26953358]
[1659310190800,0.30341262,1679.2,1678.7,6.2435]
[1659310191027,6.80386497,1679.2,1678.5,8.0727]
[1659310191343,0.3,1679.1,1678.5,7.5759]
[1659310191502,0.00341262,1679.0,1678.5,7.5759]
[1659310192147,0.00341262,1679.0,1678.7,4.46472]
[1659310192547,3.4139,1679.1,1678.7,7.36276672]
[1659310192752,3.1139,1679.1,1678.8,0.09759437]
[1659310192972,3.1139,1679.1,1678.9,4.4641]
[1659310193169,3.3036,1679.4,1678.9,4.4641]
[1659310193170,0.05,1679.4,1679.1,0.09759437]
[1659310193377,5.947,1679.5,1679.2,1.48794]
[1659310193580,3.1139,1679.5,1679.3,0.09759437]
[1659310194053,53.0,1679.6,1679.3,1.58537437]
[1659310194240,56.1303,1679.6,1679.3,1.58537437]
[1659310194442,53.0,1679.6,1679.3,1.58537437]
[1659310194648,53.0,1679.6,1679.4,0.24130173]
[1659310194859,3.1303,1679.8,1679.4,0.24130173]
[1659310195241,3.1303,1679.8,1679.7,1.21159437]
[1659310195561,0.15,1680.0,1679.7,1.21159437]
[1659310195562,53.1,1680.0,1679.7,1.4528961]
[1659310196487,53.1,1680.0,1679.7,2.9402061]
[1659310196896,53.1,1680.0,1679.7,2.84261173]
[1659310197067,53.1,1680.0,1679.7,0.24130173]
[1659310197068,53.4,1680.0,1679.7,0.24130173]
[1659310197290,53.4,1680.0,1679.4,0.05]
[1659310197291,56.29804672,1680.0,1679.4,0.05]
[1659310197472,0.1,1679.9,1679.3,7.7612]
[1659310197669,0.1,1679.9,1679.2,8.9734]
[1659310197670,0.10240563,1679.8,1679.2,2.9942]
[1659310197974,3.19804672,1679.8,1679.0,7.7683]
[1659310198201,0.7465,1679.7,1679.0,10.91390672]
[1659310198400,1.14991262,1679.7,1679.1,0.0297567]
[1659310198916,0.40341262,1679.7,1679.2,4.38591672]
[1659310199068,0.40341262,1679.7,1679.3,2.89804672]
[1659310199276,0.10341262,1679.7,1679.3,2.89804672]
[1659310199502,0.10341262,1679.7,1679.3,4.38584672]
[1659310199668,0.10341262,1679.7,1679.3,1.5175557]
[1659310199881,0.10341262,1679.7,1679.3,0.0297557]
[1659310200172,0.10341262,1679.7,1679.4,1.5174445]
[1659310200611,0.10341262,1679.7,1679.4,1.48769]
[1659310200798,3.00145934,1679.7,1679.2,0.24130173]
[1659310201002,2.89804672,1679.6,1679.0,0.05]
[1659310201206,2.89804672,1679.6,1678.8,0.05]
[1659310201207,0.10341262,1679.5,1678.8,0.05]
[1659310201387,2.89804672,1679.4,1678.7,0.05]
[1659310201572,2.89804672,1679.4,1678.6,3.17729942]
[1659310201573,3.0,1679.3,1678.6,3.22729942]
[1659310201773,6.19804672,1679.3,1678.6,3.17729942]
[1659310202093,0.10341262,1679.2,1678.6,2.9991]
[1659310202273,3.60341262,1679.2,1678.6,2.9991]
[1659310202475,0.40341262,1679.2,1678.7,2.89804672]
[1659310203225,0.40341262,1679.2,1678.8,0.24130173]
[1659310203824,0.40341262,1679.2,1678.8,3.16911145]
[1659310203825,0.3,1679.2,1678.8,3.16911145]
[1659310204126,3.5514,1679.3,1678.8,3.31790365]
[1659310204285,3.5514,1679.3,1678.8,3.61547365]
[1659310204484,3.5514,1679.3,1678.8,6.44260775]
[1659310204685,3.5514,1679.3,1678.8,6.59139995]
[1659310204928,3.5514,1679.3,1679.0,1.48791]
[1659310205114,0.6,1679.3,1679.0,1.48791]
[1659310205320,11.7478,1679.5,1679.0,1.48791]
[1659310205540,12.0478,1679.5,1679.3,0.0029691]
[1659310205698,12.3478,1679.5,1679.3,0.0029691]
[1659310205887,57.6,1679.5,1679.3,0.0327234]
[1659310206088,54.6,1679.5,1679.3,0.0327234]
[1659310206535,53.6,1679.5,1679.3,0.0327234]
[1659310206689,53.6,1679.5,1679.3,1.5204334]
[1659310206888,53.0,1679.5,1679.3,1.5204334]
[1659310207542,53.0,1679.5,1679.4,1.48779]
[1659310208104,53.3,1679.5,1679.4,1.48779]
[1659310208320,53.3,1679.5,1679.3,0.0327234]
[1659310208520,53.3,1679.5,1679.3,0.0029691]
[1659310208753,53.25,1679.5,1679.3,0.0029691]
[1659310209410,1.13747132,1679.4,1679.3,0.0029691]
[1659310209953,1.13747132,1679.4,1679.3,1.6979691]
[1659310210107,0.05,1679.8,1679.4,5.5388961]
[1659310210307,2.8542,1679.9,1679.7,0.09759437]
[1659310210711,3.2471,1680.0,1679.8,4.85530173]
[1659310210938,0.1,1680.0,1679.8,4.85530173]
[1659310211331,0.1,1680.0,1679.8,0.24130173]
[1659310211683,0.1,1680.0,1679.4,0.05]
[1659310211981,0.1,1680.0,1679.3,8.0938691]
[1659310211982,2.99804672,1680.0,1679.3,8.0938691]
[1659310212158,0.10240563,1679.8,1679.3,0.0029691]
[1659310212556,9.27574672,1679.9,1679.3,0.0029691]
[1659310212756,9.87574672,1679.9,1679.3,0.0029691]
[1659310212953,17.85024672,1679.9,1679.3,0.0029691]
[1659310213354,17.85024672,1679.9,1679.3,0.24427083]
[1659310213561,2.8167,1679.8,1679.3,0.24427083]
[1659310214185,11.5745,1679.9,1679.4,2.89804672]
[1659310214340,7.9745,1679.9,1679.5,0.24130173]
[1659310214540,7.9745,1679.9,1679.5,3.13934845]
[1659310215684,8.5745,1679.9,1679.5,3.13934845]
[1659310216081,8.5745,1679.9,1679.5,0.24130173]
[1659310216460,0.1,1680.0,1679.8,0.09759437]
[1659310216659,0.1,1680.0,1679.8,0.3388961]
[1659310217281,0.1,1680.0,1679.9,4.38530672]
[1659310218207,0.1,1680.0,1679.9,5.12940109]
[1659310218412,0.1,1680.0,1679.9,4.68290109]
[1659310218640,0.1,1680.0,1679.9,4.38530672]
[1659310219346,0.1,1680.0,1679.9,14.13067109]
[1659310219507,0.1,1680.0,1679.9,17.58093999]
[1659310220617,0.1,1680.0,1679.9,8.13316999]
[1659310220816,0.1,1680.0,1679.9,7.68666999]
[1659310222561,0.1,1680.0,1679.9,4.48726]
[1659310222761,0.1,1680.0,1679.9,7.38530672]
[1659310223280,0.1,1680.0,1679.9,7.48290109]
[1659310223490,0.1,1680.0,1679.9,7.83180672]
[1659310224208,0.1,1680.0,1679.9,7.38530672]
[1659310224770,0.1,1680.0,1679.9,7.68290109]
[1659310225271,0.1,1680.0,1679.9,7.68666999]
[1659310226031,0.05,1680.4,1680.0,6.0]
[1659310226185,11.72,1680.5,1680.1,7.35896672]
[1659310226391,11.82341262,1680.5,1680.2,2.89804672]
[1659310226712,11.72,1680.5,1680.2,2.89804672]
[1659310226881,11.72,1680.5,1680.3,1.48683]
[1659310227293,11.72,1680.5,1680.3,1.5165656]
[1659310227498,11.72,1680.5,1680.4,1.48671]
[1659310228712,6.2487,1680.8,1680.4,1.8256061]
[1659310228873,2.7615,1680.8,1680.7,0.09759437]
[1659310229076,11.72,1680.9,1680.7,1.21159437]
[1659310229296,2.86,1681.0,1680.7,4.10964109]
[1659310230144,3.46,1681.0,1680.7,4.10964109]
[1659310230350,2.46,1681.0,1680.7,4.10964109]
[1659310231426,5.46,1681.0,1680.7,2.89804672]
[1659310231659,2.46,1681.0,1680.7,2.89804672]
[1659310231869,2.41,1681.0,1680.7,2.89804672]
[1659310232231,2.41,1681.0,1680.6,0.24130173]
[1659310233275,5.41,1681.0,1680.6,0.24130173]
[1659310233963,5.41,1681.0,1680.6,1.72800173]
[1659310234850,3.65,1681.0,1680.6,1.72800173]
[1659310235053,3.7,1681.0,1680.5,1.4868]
[1659310235246,0.4462,1680.9,1680.5,1.4868]
[1659310235446,0.4462,1680.9,1680.3,11.0175]
[1659310235646,0.3,1680.9,1680.3,11.0175]
[1659310236256,2.89804672,1680.8,1680.3,1.48691]
[1659310236470,0.4462,1680.7,1680.1,0.05]
[1659310236649,6.3882,1680.7,1679.9,16.9037]
[1659310236849,6.3882,1680.7,1680.0,4.38522672]
[1659310237091,6.3882,1680.7,1680.0,4.62652845]
[1659310237348,5.942,1680.7,1680.0,4.62652845]
[1659310237494,2.942,1680.7,1680.1,2.99564109]
[1659310237696,2.942,1680.7,1680.2,1.72799173]
[1659310238160,2.942,1680.7,1680.2,2.05505723]
[1659310238366,2.942,1680.7,1680.4,1.4867]
[1659310238558,0.3,1680.8,1680.4,1.4867]
[1659310238757,3.0,1680.8,1680.4,1.4867]
[1659310239705,3.0,1680.8,1680.4,4.8286796]
[1659310239885,3.0,1680.8,1680.5,1.48663]
[1659310240269,8.45561262,1680.9,1680.5,1.5163616]
[1659310240473,7.85561262,1680.9,1680.6,1.48655]
[1659310240985,0.10341262,1680.9,1680.6,1.48655]
[1659310241521,0.10341262,1680.9,1680.6,1.5162798]
[1659310241904,0.10341262,1680.9,1680.7,1.48659]
[1659310242409,0.10341262,1680.9,1680.5,2.97298]
[1659310242410,0.10341262,1680.9,1680.5,1.4868]
[1659310242585,3.10341262,1680.9,1680.5,2.89804672]
[1659310243222,3.10341262,1680.9,1680.5,4.38481672]
[1659310243427,3.10341262,1680.9,1680.5,2.89804672]
[1659310243609,3.10341262,1680.9,1680.5,4.38483672]
[1659310244010,3.10341262,1680.9,1680.5,2.92778062]
[1659310244290,3.10341262,1680.9,1680.6,1.48667]
[1659310244532,3.10341262,1680.9,1680.6,4.4894707]
[1659310244878,3.10341262,1680.9,1680.7,1.48647]
[1659310245792,3.10341262,1680.9,1680.7,4.38451672]
[1659310247640,3.05341262,1680.9,1680.7,4.38451672]
[1659310247842,3.05341262,1680.9,1680.7,1.48647]
[1659310248139,3.05341262,1680.9,1680.6,2.89804672]
[1659310248679,3.05341262,1680.9,1680.6,2.92777872]
[1659310248840,3.05341262,1680.9,1680.7,1.4866]
[1659310249466,3.0,1680.9,1680.7,1.4866]
[1659310250079,3.0,1680.9,1680.7,4.38464672]
[1659310250475,3.0,1680.9,1680.7,2.89804672]
[1659310250641,3.0,1680.9,1680.6,2.99564109]
[1659310251150,3.0,1680.9,1680.6,2.89804672]
[1659310251339,3.0,1680.9,1680.5,3.18934844]
[1659310251948,3.0,1680.9,1680.5,4.67612844]
[1659310252421,3.0,1680.9,1680.5,4.70586074]
[1659310252589,3.0,1680.9,1680.6,0.17598436]
[1659310252872,3.0,1680.9,1680.6,1.66253436]
[1659310253076,3.0,1680.9,1680.6,0.20571516]
[1659310253280,3.0,1680.9,1680.6,0.0297308]
[1659310253437,3.0,1680.9,1680.7,1.48652]
[1659310254674,3.0,1680.9,1680.7,1.5162478]
[1659310254894,3.0,1680.9,1680.8,1.48645]
[1659310255461,12.42,1681.0,1680.8,4.77339281]
[1659310255668,12.42,1681.0,1680.8,10.71749281]
[1659310255669,11.82,1681.0,1680.8,10.71749281]
[1659310255956,11.82,1681.0,1680.9,7.76975437]
[1659310257200,11.82,1681.0,1680.9,10.66780109]
[1659310258315,11.82,1681.0,1680.9,11.95405109]
[1659310258611,0.1,1681.0,1680.9,12.15405109]
[1659310258817,0.1,1681.0,1680.9,13.87877599]
[1659310259421,0.1,1681.0,1680.9,6.25100437]
[1659310259582,0.1,1681.0,1680.6,1.48666]
[1659310259961,0.1,1681.0,1680.7,2.89804672]
[1659310260410,0.1,1681.0,1680.8,1.48651]
[1659310260768,0.1,1681.0,1680.5,1.77804172]
[1659310261000,0.39734,1681.0,1680.6,2.89804672]
[1659310261386,0.39734,1681.0,1680.6,4.38469672]
[1659310261599,0.1,1681.0,1680.6,4.38469672]
[1659310262283,0.1,1681.0,1680.7,3.18934844]
[1659310262617,0.1,1681.0,1680.8,4.38442672]
[1659310262816,0.1,1681.0,1680.9,2.89804672]
[1659310263117,0.1,1681.0,1680.8,1.48638]
[1659310263301,0.1,1681.0,1680.7,0.29130172]
[1659310264022,0.1,1681.0,1680.7,1.77779172]
[1659310265418,0.39734,1681.0,1680.7,0.29130172]
[1659310265614,0.39734,1681.0,1680.4,5.9882]
[1659310265615,0.9947161,1681.0,1680.4,5.9882]
[1659310265930,1.2947161,1681.0,1680.5,2.89804672]
[1659310266240,0.29737,1680.9,1680.5,2.89804672]
[1659310266614,3.99734,1681.0,1680.5,4.38475672]
[1659310266815,3.99734,1681.0,1680.6,2.89804672]
[1659310267056,3.99734,1681.0,1680.6,3.19629856]
[1659310267057,3.7,1681.0,1680.6,3.19629856]
[1659310267268,3.7,1681.0,1680.6,4.68292856]
[1659310269151,0.7,1681.0,1680.6,4.68292856]
[1659310269572,0.4,1681.0,1680.7,1.48648]
[1659310270109,0.1,1681.0,1680.8,1.48641]
[1659310270917,0.1,1681.0,1680.6,6.19886806]
[1659310271111,0.1,1681.0,1680.6,3.30082134]
[1659310271312,0.1,1681.0,1680.6,0.29825184]
[1659310271750,0.1,1681.0,1680.6,1.78488184]
[1659310271751,0.39732,1681.0,1680.6,1.78488184]
[1659310272112,0.1,1681.0,1680.6,1.78488184]
[1659310272357,0.1,1681.0,1680.7,1.4865]
[1659310272713,0.39732,1681.0,1680.6,3.79825184]
[1659310272911,0.69732,1681.0,1680.6,3.79825184]
[1659310273913,0.69732,1681.0,1680.6,5.28487184]
[1659310275539,0.4,1681.0,1680.6,5.28487184]
[1659310276424,0.69732,1681.0,1680.6,8.18291856]
[1659310277220,0.4,1681.0,1680.6,8.21264846]
[1659310277422,0.1,1681.0,1680.6,8.21264846]
[1659310278140,0.1,1681.0,1680.7,1.4865]
[1659310278454,0.39733,1681.0,1680.6,3.79825184]
[1659310278626,0.39733,1681.0,1680.4,6.3297]
[1659310278627,0.69733,1681.0,1680.4,2.7797]
[1659310278866,0.69733,1681.0,1680.2,0.05]
[1659310278867,0.10240563,1680.8,1680.2,0.05]
[1659310279057,0.10240563,1680.5,1680.0,10.7679]
[1659310279260,0.10240563,1680.5,1679.8,4.9965]
[1659310279497,3.85,1680.6,1679.9,2.89804672]
[1659310279697,0.54870563,1680.5,1679.9,2.89804672]
[1659310279910,0.3,1680.4,1679.9,2.89804672]
[1659310280062,6.69804672,1680.4,1679.7,0.05]
[1659310280403,0.10240563,1680.2,1679.6,0.05]
[1659310280586,0.10240563,1680.0,1679.4,11.2802]
[1659310280784,0.10240563,1680.0,1679.5,2.89804672]
[1659310281984,0.15581825,1680.0,1679.5,2.89804672]
[1659310282185,0.15581825,1680.0,1679.4,11.21284672]
[1659310282408,3.95581825,1680.0,1679.4,11.21284672]
[1659310282613,0.75581825,1680.0,1679.4,11.21284672]
[1659310282802,0.35341262,1680.0,1679.5,2.89804672]
[1659310283308,0.05341262,1680.0,1679.5,6.39804672]
[1659310283495,0.05341262,1680.0,1679.6,2.89804672]
[1659310284077,0.05341262,1680.0,1679.8,0.09759437]
[1659310284365,0.05341262,1680.0,1679.6,2.89804672]
[1659310285367,3.4976,1680.2,1679.7,4.06488045]
[1659310285368,0.35,1680.2,1679.7,4.06488045]
[1659310285620,0.6,1680.3,1679.8,5.89804672]
[1659310285767,0.3,1680.3,1680.0,0.09759437]
[1659310286114,0.3,1680.4,1680.3,0.09759437]
[1659310286286,0.3,1680.4,1680.0,2.99564109]
[1659310286902,0.3,1680.4,1680.0,2.89804672]
[1659310287102,0.35341262,1680.4,1680.0,2.89804672]
[1659310288219,0.35341262,1680.4,1679.9,3.207162]
[1659310288985,0.35341262,1680.4,1679.9,0.30911528]
[1659310289385,0.35341262,1680.4,1679.7,2.7822]
[1659310289626,0.79971262,1680.4,1679.7,5.63024672]
[1659310289826,1.19960825,1680.4,1679.7,5.63024672]
[1659310290414,0.75330825,1680.4,1679.7,5.63024672]
[1659310291060,56.65135497,1680.4,1679.7,2.7322]
[1659310291261,56.65135497,1680.4,1679.6,3.05]
[1659310291262,0.29757,1680.2,1679.6,3.05]
[1659310291466,3.49561672,1680.2,1679.5,3.0]
[1659310291824,3.49561672,1680.2,1679.4,8.3648]
[1659310292050,3.49561672,1680.2,1679.4,11.21284672]
[1659310292051,5.28106672,1680.2,1679.4,11.21284672]
[1659310292218,0.29759,1680.0,1679.4,11.21284672]
[1659310292418,3.5,1680.1,1679.4,11.21284672]
[1659310292641,0.3,1680.1,1679.5,0.29130172]
[1659310292841,3.54804672,1680.2,1679.5,0.30963833]
[1659310293042,3.49804672,1680.2,1679.5,0.30963833]
[1659310293492,3.49804672,1680.2,1679.5,3.30963833]
[1659310294660,0.6,1680.2,1679.6,2.89804672]
[1659310294867,3.0431,1680.3,1679.9,0.09759437]
[1659310294868,3.2931,1680.3,1679.9,0.09759437]
[1659310295069,3.2931,1680.3,1679.9,2.99564109]
[1659310295675,6.7931,1680.3,1679.6,2.9752]
[1659310295872,6.7931,1680.3,1679.5,3.0]
[1659310295873,3.5,1680.2,1679.5,3.05]
[1659310296099,3.5,1680.2,1679.5,5.89804672]
[1659310296404,0.05341262,1680.1,1679.5,5.89804672]
[1659310296857,0.05341262,1680.1,1679.5,6.22190757]
[1659310300687,0.15581825,1680.1,1679.5,6.22190757]
[1659310300888,0.15581825,1680.1,1679.5,5.89804672]
[1659310301866,0.10240563,1679.9,1679.5,3.0]
[1659310302029,0.10240563,1679.6,1679.3,3.279]
[1659310302211,0.10240563,1679.6,1679.3,2.8324]
[1659310302413,0.10240563,1679.6,1679.2,0.4466]
[1659310302414,0.40004563,1679.6,1679.2,0.4466]
[1659310302637,3.4327,1679.8,1679.2,2.89804672]
[1659310302841,3.7327,1679.8,1679.6,0.00228001]
[1659310303858,4.03029,1679.8,1679.6,0.00228001]
[1659310304641,7.01119,1679.8,1679.6,0.00228001]
[1659310305454,0.63441262,1679.7,1679.6,0.00228001]
[1659310305617,0.35341262,1679.7,1679.6,0.00228001]
[1659310306455,0.05341262,1679.7,1679.6,0.00228001]
[1659310306623,0.63441262,1679.7,1679.6,0.00228001]
[1659310307161,0.05341262,1679.7,1679.6,0.00228001]
[1659310307750,0.0510534,1679.7,1679.6,0.00228001]
[1659310310120,0.6320534,1679.7,1679.6,0.00228001]
[1659310310358,0.3510534,1679.7,1679.6,0.00228001]
[1659310311349,0.3,1679.7,1679.6,0.00228001]
[1659310311547,6.7136,1679.8,1679.6,0.00228001]
[1659310312137,8.7014,1680.1,1679.7,0.31838333]
[1659310312349,6.5512,1680.3,1679.9,0.09759437]